Cogmind - Beta 14 @@@ ROGUE MODE // 2024.09.14 @ 18:18:03 Player: AnotherZach Result: Destroyed by Combat Programmer with EMDS Performance ------------- Evolutions (9) 4500 Regions Visited (28) 5600 Robots Destroyed (456) 2280 Value Destroyed (22789) 22789 Prototype IDs (90) 1800 Alien Tech Used (12) 2400 Bonus (19121) 19121 TOTAL SCORE: 58490 Bonus ------- High Alert Combat Kills 2880 Follower Combat Kills 2450 Entered Garrisons 800 Used RIF Installer 1500 Network Hubs Disabled 400 Aligned with FarCom 300 Built Enhanced Grunts 300 A7 Reached Mainframe 300 Met R17 at Cetus 500 Used Core Reset Matrix 3000 Met R17 at Research 2000 Scanned by Researcher 500 Pursued by Intercept 500 Met MAIN.C 5000 Friendly Fire -1309 Cogmind --------- Core Integrity 0/1600 Matter 96/300 Energy 100/100 System Corruption 63% Temperature Cool (0) Movement Core (50) Location -1/Command Parts ------- > --- POWER (3) -------- (None) > --- PROPULSION (6) --- Myomer-Biometal Exoskeleton > --- UTILITY (12) ----- Scrap Engine Improved Target Analyzer > --- WEAPON (4) ------- (None) > --- INVENTORY (5) ---- Experimental ECM Suite High-powered Tractor Beam Peak State ------------ > --- POWER ------------ Light Quantum Reactor Particle-Quantum Reactor > --- PROPULSION ------- High-density Centrium Leg High-density Centrium Leg Myomer-Biometal Exoskeleton > --- UTILITY ---------- Scrap Engine Spectral Analyzer Advanced Cloaking Device SHELL Armor Advanced Thermal Shield Advanced Hardlight Generator Phase Redirector Microwarp Drive > --- WEAPON ----------- Precision Phase Gun Precision Phase Gun Thermal Disruptor Construct/C > --- INVENTORY -------- Experimental ECM Suite Experimental EM Disruption Field Core Regenerator [Rating: 224] Favorites ----------- Power Constructs Engine Improved Ion Engine Power Core Light Nuclear Core Reactor Constructs Propulsion Constructs Treads Armored Treads Leg Constructs Wheel Wheel Hover Unit Improved Antigrav System Utility Armored Scrap Engine Device Armored Scrap Engine Storage Cargo Storage Unit Processor Makeshift Salvage Targeting Computer Hackware Hacking Suite Protection SHELL Armor Artifact Microwarp Drive Weapon Constructs Energy Gun Constructs Energy Cannon Constructs Ballistic Gun KE Penetrator Ballistic Cannon Advanced Assault Cannon Launcher Compact Tesla Bomb Launcher Special Weapon Improved Remote Datajack Impact Weapon Core Stripper Slashing Weapon Sigix Broadsword Piercing Weapon Force Lance Build | -11 -10 -9 -9 -9 -8 -8 -8 -8 -6 -6 -6 -6 -5 -5 -5 -5 -5 -4 -4 -4 -4 -3 -3 -3 -2 -2 -1 -1 ------- Run | Yrd Mat Mat Min Exi Min Mat Sto Rec Fac Gar Fac Gar Fac Ext Cet Arc Hub Fac Gar Fac Gar Res Qua Sec Res Tes Acc Com Slots Evolved 18 | . . 2 . . . 2 . . 4 . . . 2 . . . . 2 . . . 2 . . 2 . 2 . Power 2 | . . . . . . . . . 1 . . . . . . . . . . . . . . . 1 . . . Propulsion 4 | . . 1 . . . . . . 1 . . . 2 . . . . . . . . . . . . . . . Utility 10 | . . 1 . . . 1 . . 2 . . . . . . . . 2 . . . 1 . . 1 . 2 . Weapon 2 | . . . . . . 1 . . . . . . . . . . . . . . . 1 . . . . . . Parts Attached 449 | 7 25 14 1 3 5 33 19 8 16 26 . 11 8 22 6 6 21 13 40 . 12 23 25 29 21 11 5 39 Power 40 | 1 1 2 . . 1 4 2 . 3 6 . 3 3 4 . . 1 . . . 1 . . 2 1 . . 5 Engine 21 | 1 1 2 . . 1 4 . . 3 4 . 2 . 3 . . . . . . . . . . . . . . Core 6 | . . . . . . . 2 . . 1 . . 2 1 . . . . . . . . . . . . . . Reactor 13 | . . . . . . . . . . 1 . 1 1 . . . 1 . . . 1 . . 2 1 . . 5 Propulsion 44 | 2 7 4 . . . 8 4 1 5 3 . . 1 . . . 1 . . . . . . 1 4 2 . 1 Treads 22 | . 2 3 . . . 7 4 1 1 1 . . 1 . . . . . . . . . . . 2 . . . Leg 17 | . 5 1 . . . . . . 4 2 . . . . . . 1 . . . . . . . 1 2 . 1 Wheel 2 | 2 . . . . . . . . . . . . . . . . . . . . . . . . . . . . Hover 3 | . . . . . . 1 . . . . . . . . . . . . . . . . . 1 1 . . . Flight . | . . . . . . . . . . . . . . . . . . . . . . . . . . . . . Utility 225 | 2 2 5 . 1 2 5 2 4 6 8 . 6 2 8 4 3 18 13 29 . 7 20 16 15 14 7 5 21 Device 134 | 1 . 2 . . 2 1 . 1 4 3 . 4 1 4 2 2 15 6 18 . 3 13 14 10 10 3 2 13 Storage 16 | 1 1 1 . 1 . 1 . . . 3 . 2 . . . . . 1 . . . 2 1 . . . . 2 Processor 13 | . . 1 . . . . . 1 1 2 . . . . . . . 2 . . . 1 . 4 . . . 1 Hackware 33 | . . 1 . . . 1 2 1 . . . . 1 4 . 1 3 1 7 . 4 4 1 . . . 1 1 Protection 20 | . 1 . . . . 2 . 1 1 . . . . . 2 . . 3 4 . . . . 1 2 2 . 1 Artifact 9 | . . . . . . . . . . . . . . . . . . . . . . . . . 2 2 2 3 Weapon 140 | 2 15 3 1 2 2 16 11 3 2 9 . 2 2 10 2 3 1 . 11 . 4 3 9 11 2 2 . 12 Energy Gun 35 | 1 11 . . . 1 6 3 2 . 1 . . . 1 1 1 . . 2 . . . 1 . . 2 . 2 Energy Cannon 21 | . . . . . . 1 . . . 4 . 1 1 1 . . . . . . 1 . 3 5 1 . . 3 Ballistic Gun 20 | 1 . 3 . 1 1 2 . . . . . . . 5 . 1 1 . . . . . . 4 . . . 1 Ballistic Cannon 15 | . . . . . . 5 5 1 1 2 . . . . . . . . . . . 1 . . . . . . Launcher 22 | . 4 . 1 . . 2 2 . 1 2 . . . . . . . . 2 . 2 . . . . . . 6 Special Weapon 20 | . . . . 1 . . . . . . . 1 1 3 1 1 . . 4 . 1 2 4 1 . . . . Impact Weapon 2 | . . . . . . . . . . . . . . . . . . . . . . . . 1 1 . . . Slashing Weapon 2 | . . . . . . . 1 . . . . . . . . . . . . . . . 1 . . . . . Piercing Weapon 3 | . . . . . . . . . . . . . . . . . . . 3 . . . . . . . . . Special Melee Weapon . | . . . . . . . . . . . . . . . . . . . . . . . . . . . . . Unidentified Prototypes 34 | . . 1 . . . 4 3 1 2 . . . . . 1 2 4 1 . . . 2 2 6 . 4 . 1 Corrupted Parts 3 | . . . . . . . . . . . . . . . . . . . . . 1 . . . . . . 2 System Corruption 10 | . . . . . . . . . . . . . . . . . . . . . 5 . . . . . . 5 Parts Lost 81 | . 1 1 . . . 4 5 3 5 12 . 1 2 1 1 . 2 5 4 . 3 . 1 8 . 1 . 21 Power 19 | . . . . . . 1 2 . 2 5 . 1 . . . . 1 . . . 1 . . 2 . . . 4 Propulsion 14 | . . . . . . 1 2 1 . 3 . . 1 . . . 1 . . . . . . 2 . . . 3 Utility 25 | . 1 1 . . . 1 . . 1 1 . . . . 1 . . 4 2 . . . 1 1 . 1 . 10 Weapon 23 | . . . . . . 1 1 2 2 3 . . 1 1 . . . 1 2 . 2 . . 3 . . . 4 Highest Loss Streak 19 | . 1 1 . . . 3 2 2 2 5 . 1 1 1 1 . 1 2 2 . 2 . 1 3 . 1 . 19 To Critical Strikes . | . . . . . . . . . . . . . . . . . . . . . . . . . . . . . Average Slot Usage (%) 67 | . 97 99 100 90 100 98 99 81 75 61 66 61 56 50 52 49 52 56 56 57 55 54 57 57 56 60 64 65 Engine 3 | . 14 10 11 11 11 9 3 4 7 8 6 6 . 2 . . . . . . . . . . . . . . Core 1 | . . . . . . . 5 4 3 . . 1 4 2 2 . . . 1 5 4 . . . . . . . Reactor 2 | . . . . . . . . . . 1 6 . 2 1 2 5 4 5 3 . . 3 3 7 7 8 8 7 Treads 7 | . 5 27 33 33 33 26 26 18 3 3 6 4 6 . . 1 . 1 1 5 1 1 1 2 . . . 2 Leg 3 | . 12 5 . . . . . 1 7 3 . . . 3 4 3 4 3 3 . 3 2 . . . 8 12 7 Device 11 | . 4 4 11 11 11 9 9 6 12 9 13 12 8 7 10 12 15 13 11 10 7 19 19 16 15 15 19 23 Storage 6 | . 14 11 11 11 11 9 9 9 6 6 6 6 5 5 5 5 5 5 5 5 5 4 4 4 2 . . 3 Processor 5 | . . 10 11 11 11 9 . 4 13 11 6 6 5 5 . . . 5 5 5 5 5 9 7 8 6 4 2 Hackware 3 | . . 6 . . . 1 17 10 . . . . 1 2 . . 1 1 5 10 11 4 3 . . . . . Protection 1 | . 9 . . . . 7 . . . . . . . . 4 1 . 4 2 . . . . 2 3 4 4 3 Energy Gun 5 | . 25 3 . . 2 3 7 6 . 3 6 3 . 2 16 12 10 5 10 5 1 . . . 2 12 12 5 Energy Cannon 2 | . . . . . . . . 2 13 6 13 7 . 2 . . . 1 . . 1 . 1 1 1 . . 3 Ballistic Gun 3 | . . 18 14 2 19 3 . 4 2 . . 6 11 4 . . 5 4 . 5 6 . . 4 4 . . 2 Ballistic Cannon 3 | . . . . . . 19 18 8 1 1 . . 2 1 . . . 3 1 . . 3 1 1 1 . . . Peak Build Rating 224 | 9 12 26 25 28 34 44 46 69 75 98 98 93 100 104 114 124 127 140 143 106 128 161 188 197 181 203 224 223 Average Rating 93 | 6 9 22 23 21 32 35 44 49 69 77 98 82 86 89 95 113 122 133 119 106 107 151 168 172 161 185 211 193 On Entrance 91 | . 9 8 25 23 28 34 44 44 59 63 98 98 71 89 91 114 124 124 137 106 106 118 143 181 133 164 203 218 Naked Turns . | . . . . . . . . . . . . . . . . . . . . . . . . . . . . . Heaviest Build 266 | 14 32 35 36 53 58 112 112 104 108 186 186 187 181 193 213 213 222 222 201 177 182 266 182 166 186 125 131 147 Greatest Support 256 | 26 40 60 60 60 60 70 76 81 109 110 110 124 199 161 81 256 256 209 207 199 199 201 211 211 121 153 121 173 Greatest Overweight (x) 5 | . 1 1 . . . 1 2 3 1 5 1 1 2 2 2 1 1 1 1 . 1 1 . 1 2 1 1 1 Average Overweight (x) . | . . . . . . . 1 1 . 1 1 . . 1 2 . . . . . . . . . . . . . Largest Inventory Capacity 30 | 8 15 15 15 20 20 25 25 25 25 30 30 30 30 30 30 30 30 30 30 30 30 30 25 25 25 5 5 10 Average Capacity 24 | 7 12 15 15 17 20 21 25 25 25 24 30 29 30 30 30 30 30 30 30 30 30 25 25 25 17 5 5 9 Most Carried 30 | 7 15 15 14 20 20 25 25 25 25 30 30 30 30 30 30 30 30 30 30 30 30 26 25 25 23 5 5 10 Average Carried 23 | 4 11 14 13 16 19 20 24 24 23 21 30 28 28 28 27 29 29 29 29 30 28 24 24 23 15 4 3 8 Final Capacity 30 | 8 15 15 15 20 20 25 25 25 25 30 30 30 30 30 30 30 30 30 30 30 30 25 25 25 5 5 5 5 Final Carried 30 | 7 15 14 14 20 20 25 25 25 23 30 30 30 27 29 30 30 30 30 30 30 27 25 25 22 5 5 3 2 Scrap Engine Consumption 663 | . . . . . . . . 42 32 66 2 25 21 138 21 7 57 36 81 1 38 7 17 19 17 2 . 34 Constructs Created 26 | . . . . . . . . 5 1 5 . 2 1 2 . . . 2 3 . . . 1 3 . . . 1 Constructs Modified 258 | . . . . . . . . 5 18 15 . 12 11 58 7 6 19 21 27 . 16 3 7 11 7 . . 15 Class Distribution -------------------- 34% | Hauler-Construct 12% | Construct 11% | Mutant 11% | Bothacker-Construct 7% | Hacker-Skirmisher 5% | Commander-Construct 3% | Alien-Tank 3% | Skirmisher Dominant Class ---------------- Mutant | -10/Materials Mutant | -9/Materials Mutant | -9/Mines Mutant | -9/Exiles Mutant | -8/Mines Skirmisher | -8/Materials Hacker-Skirmisher | -8/Storage Construct | -8/Recycling Construct | -6/Factory Hauler-Construct | -6/Garrison Hauler-Construct | -6/Factory Bothacker-Construct | -6/Garrison Bothacker-Construct | -5/Factory Hauler-Construct | -5/Extension Hauler-Construct | -5/Cetus Hauler-Construct | -5/Archives Hauler-Construct | -5/Hub_04(d) Hauler-Construct | -4/Factory Hauler-Construct | -4/Garrison Bothacker-Construct | -4/Factory Bothacker-Construct | -4/Garrison Bothacker-Construct | -3/Research Commander-Construct | -3/Quarantine Scavenger-Construct | -3/Section 7 Alien-Mutant | -2/Research Alien-Tank | -2/Testing Alien-Tank | -1/Access Scavenger-Tank | -1/Command Resources | -11 -10 -9 -9 -9 -8 -8 -8 -8 -6 -6 -6 -6 -5 -5 -5 -5 -5 -4 -4 -4 -4 -3 -3 -3 -2 -2 -1 -1 ----------- Run | Yrd Mat Mat Min Exi Min Mat Sto Rec Fac Gar Fac Gar Fac Ext Cet Arc Hub Fac Gar Fac Gar Res Qua Sec Res Tes Acc Com Matter Collected 13548 | 283 291 613 . 107 340 901 1127 181 409 589 . 258 140 1561 170 32 1527 804 978 . 490 152 661 629 233 74 . 998 Remotely 87 | . . . . . 22 . . . . . . . . . . . . . . . . . . . 65 . . . Salvage Created 25211 | 104 597 923 . . 444 1079 1957 502 1399 2266 . 467 745 1409 160 173 2147 2573 2236 . 916 116 670 1831 243 74 . 2180 Parts 1081 | 9 37 51 . . 13 58 93 27 43 93 . 28 54 69 4 8 81 86 85 . 28 6 35 86 11 2 . 74 Haulers Intercepted 10 | . 1 . . . . 3 4 . . . . . . . . . 1 . . . . . . . 1 . . . Recyclers Shooed 19 | . 2 . . . 1 . 3 1 3 . . . 3 2 . . 1 2 . . . . . 1 . . . . Parts Field Recycled . | . . . . . . . . . . . . . . . . . . . . . . . . . . . . . Retrieved Matter . | . . . . . . . . . . . . . . . . . . . . . . . . . . . . . Parts Self-Destructed . | . . . . . . . . . . . . . . . . . . . . . . . . . . . . . Prevented . | . . . . . . . . . . . . . . . . . . . . . . . . . . . . . Kills | -11 -10 -9 -9 -9 -8 -8 -8 -8 -6 -6 -6 -6 -5 -5 -5 -5 -5 -4 -4 -4 -4 -3 -3 -3 -2 -2 -1 -1 ------- Run | Yrd Mat Mat Min Exi Min Mat Sto Rec Fac Gar Fac Gar Fac Ext Cet Arc Hub Fac Gar Fac Gar Res Qua Sec Res Tes Acc Com Combat Hostiles Destroyed 343 | . 16 18 . . 5 22 35 6 16 30 . 9 9 18 3 1 26 32 34 . 12 2 7 20 2 . . 20 Melee 12 | . 1 . . . . . . . . 1 . . . . . . . . . . . . 3 7 . . . . Guns 176 | . 9 18 . . 5 9 10 2 1 6 . 6 6 11 2 1 24 17 25 . 9 . . 3 . . . 12 Cannons 100 | . . . . . . 11 18 4 11 12 . 3 3 6 . . 2 14 5 . . 2 2 4 2 . . 1 AOE 35 | . 6 . . . . 2 7 . 4 8 . . . . . . . . 3 . 1 . . 2 . . . 2 Classes Destroyed 23 | 2 5 3 . . . 3 1 2 2 2 . . . . . . 1 . . . . . . 2 . . . . Worker 13 | . . 1 . . . 2 2 . . . . . . . . . 3 . . . . 1 1 . 2 . . 1 Builder 16 | . 4 . . . . 2 1 1 . . . . 1 2 . . . 2 . . . . 1 2 . . . . Tunneler 4 | 2 . . . . . . 1 . . . . . . . . . 1 . . . . . . . . . . . Hauler 10 | . 1 . . . . 3 4 . . . . . . . . . 1 . . . . . . . 1 . . . Recycler 30 | 1 1 1 . . 2 2 4 2 6 . . . 1 . . . 2 4 . . . . 1 . . . . 3 Mechanic 2 | . . . . . . . 1 . . . . . . . . . . 1 . . . . . . . . . . Operator 16 | . 2 2 . . . 1 2 . . . . . . 2 . 3 1 . . . . . . 3 . . . . Watcher 13 | . . 1 . . . 2 . . 1 . . . 1 . . . 2 . . . . 1 2 1 . . . 2 Swarmer 53 | . 6 . . . . 4 . . 12 7 . 7 . . . . . 4 8 . . 1 . 4 . . . . Cutter 3 | . . . . . . . . . . 3 . . . . . . . . . . . . . . . . . . Grunt 121 | . 10 15 . . 5 10 19 . . 8 . . . 10 . . 7 13 10 . 5 . . 1 . . . 8 Brawler 9 | . . . . . . 2 4 . . . . . . . . . 1 2 . . . . . . . . . . Duelist 8 | . . . . . . 1 4 . . . . . . 1 . . . . 1 . . . . . . . . 1 Protector 2 | . . . . . . . . . . . . . . . . . 2 . . . . . . . . . . . Researcher 8 | . . . . . . . . . . . . . . . . . . . . . . . . 7 . 1 . . Sentry 60 | . . 3 . . . 4 8 3 1 8 . 1 . 3 . 1 5 2 6 . 6 1 . 4 . . . 4 Specialist 6 | . . . . . . . . . . 3 . . . . . . . . 3 . . . . . . . . . Hunter 24 | . . . . . . 1 . . . . . . 3 1 . . 1 4 2 . 1 . 4 5 . . . 2 Programmer 37 | . . . . . . . . . 2 1 . 1 6 . . . 4 7 3 . . . 3 3 2 . . 5 Q-Series 1 | . . . . . . . . . . . . . . . . . . . . . . . . 1 . . . . Behemoth 3 | . . . . . . . . . 1 . . . . 1 . . . . 1 . . . . . . . . . Cetus Guard 3 | . . . . . . . . . . . . . . . 3 . . . . . . . . . . . . . S7 Guard 1 | . . . . . . . . . . . . . . . . . . . . . . . . 1 . . . . Lightning 6 | . . . . . . . . . . . . . . . . . 6 . . . . . . . . . . . Combat Programmer 1 | . . . . . . . . . . . . . . . . . . . . . . . . 1 . . . . Scientist 2 | . . . . . . . . 2 . . . . . . . . . . . . . . . . . . . . Scrapper 3 | . . . . . . . . 3 . . . . . . . . . . . . . . . . . . . . Savage 2 | . . . . . . . . . . . . . . 2 . . . . . . . . . . . . . . Guerrilla 1 | . . . . . . . . . . . . . . 1 . . . . . . . . . . . . . . Best Kill Streak 18 | 3 4 9 . . 3 5 18 5 4 5 . 5 5 3 2 1 6 8 6 . 6 1 3 9 2 1 . 5 Combat Bots Only 11 | . 3 9 . . 2 4 11 3 4 5 . 5 4 3 2 1 4 8 6 . 6 1 2 7 2 . . 4 Max Kills in Single Turn 4 | 1 3 1 . . 1 2 4 1 2 2 . 1 2 2 1 1 2 3 4 . 1 1 1 3 1 1 . 2 Gunslinging 1 | . . . . . . . . . . . . . . . . . . . 1 . . . . . . . . . Exploded 3 | . 3 . . . . 1 3 . 2 2 . . . . . . . . 3 . 1 . . 1 . . . 1 Melee 1 | . 1 . . . . . . . . 1 . . . . . . . . . . . . 1 1 . . . . Uniques/NPCs Destroyed . | . . . . . . . . . . . . . . . . . . . . . . . . . . . . . Combat | -11 -10 -9 -9 -9 -8 -8 -8 -8 -6 -6 -6 -6 -5 -5 -5 -5 -5 -4 -4 -4 -4 -3 -3 -3 -2 -2 -1 -1 -------- Run | Yrd Mat Mat Min Exi Min Mat Sto Rec Fac Gar Fac Gar Fac Ext Cet Arc Hub Fac Gar Fac Gar Res Qua Sec Res Tes Acc Com Hostile Shots Fired 4014 | . 59 53 . . 36 131 120 31 149 433 . 137 109 116 30 10 219 356 349 . 175 5 130 395 89 209 66 607 Missed 1236 | . 12 19 . . 11 40 30 3 52 119 . 41 20 23 9 3 54 114 103 . 75 2 52 121 33 103 26 171 Damage Taken 51522 | . 630 401 . . 456 1429 1616 608 1660 3258 . 1073 1669 2041 574 182 3665 4131 4451 . 2213 71 1737 5465 1326 1610 604 10652 Core 6642 | . 164 55 . . 55 187 134 104 131 468 . 133 60 128 24 . 264 374 350 . 278 . 132 406 451 732 196 1816 Absorbed by Shields 3494 | . . . . . . . . . . . . . . 104 52 . . . 25 . . 22 344 86 351 630 272 1608 Reduced by Siege Mode 34 | . . . . . . . . . . . . . 34 . . . . . . . . . . . . . . . Redirected to Core 68 | . . . . . . . . . . . . . . . . . . . . . . . . . . . 68 . Redirected to Shielding 28 | . 28 . . . . . . . . . . . . . . . . . . . . . . . . . . . Ignored by Resistances 5403 | . . . . . . . . . . . . . . . . . 1829 429 180 . . . 36 997 46 36 . 1850 Regen/Repaired (Parts) 20020 | . . . . . . . . . 548 963 . 632 550 1427 513 123 1021 2723 2907 . 574 679 993 1815 729 162 280 3381 Core Remaining (%) 40 | 100 34 . . . 72 . . 22 . . . 13 . . . . 52 . . . 12 . . 47 . 13 . . Volleys Fired 1313 | 5 67 40 . . 33 69 74 20 53 106 . 33 35 101 12 36 115 95 126 3 63 13 38 66 8 5 3 94 Largest 4 | 2 2 2 . . 2 3 3 3 3 3 . 3 3 3 3 3 3 3 3 1 3 1 1 4 3 4 1 4 Hottest 328 | 60 112 80 . . 50 159 146 146 141 217 . 194 99 228 210 210 140 150 328 7 311 10 81 266 184 278 60 294 Shots Fired 2977 | 10 125 79 . . 65 177 189 45 129 187 . 71 84 179 36 51 342 276 284 3 97 19 50 197 18 15 3 246 Gun 1969 | 10 119 79 . . 65 87 57 19 24 85 . 49 64 115 36 39 333 166 225 . 74 . 11 142 10 15 3 142 Cannon 812 | . . . . . . 82 127 26 102 91 . 21 17 31 . . 9 110 36 . 2 6 23 55 8 . . 66 Launcher 82 | . 6 . . . . 8 5 . 3 11 . . . . . . . . 6 . 5 . . . . . . 38 Special 114 | . . . . . . . . . . . . 1 3 33 . 12 . . 17 3 16 13 16 . . . . . Kinetic 1337 | 5 . 77 . . 65 126 127 26 38 82 . 39 52 86 5 24 146 124 26 . 63 6 13 144 12 2 . 49 Thermal 1063 | 5 93 . . . . 43 . . 4 52 . 29 29 59 31 15 145 152 235 . 13 . . 53 3 8 . 94 Explosive 23 | . 6 . . . . 8 5 . . . . . . . . . . . . . . . . . . . . 4 Electromagnetic 440 | . 26 2 . . . . 57 19 87 53 . 2 . 1 . . 51 . 6 . 5 . 21 . 3 5 3 99 Robot Hit Streak 34 | 7 10 9 . . 6 8 13 21 23 24 . 13 34 15 11 6 17 19 31 23 27 13 23 14 3 5 5 11 Robot Miss Streak 7 | 1 3 2 . . 1 6 4 3 3 3 . 5 6 3 2 3 7 4 3 . 2 1 1 3 2 1 1 5 Penetration Max 2 | . . . . . . . . . . . . . 2 1 1 1 1 1 1 . 1 . . . . . . 1 Secondary Targets 17 | . 1 2 . . 1 . . . . . . . 2 1 1 . 1 . 6 . . . . . . . . 2 Max Gunslinging Chain 1 | . 1 1 . . 1 . . . . . . . 1 1 1 . 1 . 1 . . . . . . . . 1 Autonomous 51 | . . . . . . . . 10 . 23 . . . . . . . . . . . 6 12 . . . . . Shots Hit Robots 1986 | 8 77 54 . . 44 97 121 32 86 148 . 41 70 114 29 28 204 172 189 3 78 17 53 151 11 11 2 146 Core Hits 936 | 4 37 26 . . 14 52 90 16 42 77 . 38 54 41 10 12 82 71 77 . 43 4 11 54 8 3 . 70 Critical Kills 17 | . . . . . 1 . . . . . . . . 2 . . 5 3 1 . . . . 2 1 . . 2 Critical Parts Destroyed 24 | . . 1 . . . . . . . . . . . . . . 7 8 3 . . . . 1 . . . 4 Critical Strikes 95 | . 4 1 . . 1 5 4 1 2 4 . . . 5 1 . 12 17 8 . 2 . . 7 1 2 . 18 Burn 24 | . 3 . . . . . . . . . . . . 3 1 . . 3 4 . . . . . . 2 . 8 Meltdown 1 | . . . . . . . . . . . . . . 1 . . . . . . . . . . . . . . Destroy 42 | . . 1 . . 1 . . . . . . . . 1 . . 12 13 4 . . . . 3 1 . . 6 Blast 17 | . . . . . . 5 4 1 1 3 . . . . . . . 1 . . 2 . . . . . . . Corrupt 7 | . 1 . . . . . . . 1 1 . . . . . . . . . . . . . . . . . 4 Sever 4 | . . . . . . . . . . . . . . . . . . . . . . . . 4 . . . . Melee Attacks 104 | . . . . . . . 1 . . . . . . . . . . . 4 . . . 41 58 . . . . Kinetic 2 | . . . . . . . . . . . . . . . . . . . . . . . . 2 . . . . Impact . | . . . . . . . . . . . . . . . . . . . . . . . . . . . . . Slashing 98 | . . . . . . . 1 . . . . . . . . . . . . . . . 41 56 . . . . Piercing 4 | . . . . . . . . . . . . . . . . . . . 4 . . . . . . . . . Sneak Attacks 11 | . . . . . . . 1 . . . . . . . . . . . . . . . 5 5 . . . . Combat Hostiles 1 | . . . . . . . . . . . . . . . . . . . . . . . . 1 . . . . Follow-up Attacks . | . . . . . . . . . . . . . . . . . . . . . . . . . . . . . Damage Inflicted 64275 | 106 1643 926 . . 773 2704 4013 1143 1970 5762 . 943 1729 3092 904 950 6971 6243 5731 . 2130 574 3295 6193 498 314 67 5601 Guns 34953 | 106 1088 916 . . 773 984 976 298 255 1727 . 690 1511 2068 904 950 6596 3648 4780 . 1617 . 145 1600 167 314 67 2773 Cannons 17134 | . . . . . . 1245 1886 822 1450 3065 . 238 218 968 . . 279 2595 558 . 12 521 1376 879 157 . . 865 Explosions 6318 | . 508 . . . . 445 1042 . 256 963 . . . . . . . . 351 . 501 . 83 470 . . . 1699 Melee 4441 | . . . . . . . 74 . . . . . . . . . . . 42 . . . 1502 2823 . . . . Ramming 1429 | . 47 10 . . . 30 35 23 9 7 . 15 . 56 . . 96 . . . . 53 189 421 174 . . 264 Kinetic 25878 | 52 . 883 . . 773 1714 1886 822 743 2707 . 500 1119 1970 185 694 2861 2638 280 . 1353 521 1041 1890 279 44 . 923 Thermal 22040 | 54 895 . . . . 515 165 . 97 1516 . 392 610 1015 719 256 3615 3605 5107 . 356 . . 1059 . 198 . 1866 Explosive 2400 | . 477 . . . . 445 877 . . . . . . . . . . . . . . . 83 . . . . 518 Electromagnetic 8087 | . 224 33 . . . . 976 298 1121 1532 . 36 . 51 . . 399 . 302 . 421 . 480 . 45 72 67 2030 Impact . | . . . . . . . . . . . . . . . . . . . . . . . . . . . . . Slashing 4399 | . . . . . . . 74 . . . . . . . . . . . . . . . 1502 2823 . . . . Piercing 42 | . . . . . . . . . . . . . . . . . . . 42 . . . . . . . . . Highest Corruption 62 | . . 5 5 5 5 . . . 1 3 3 3 7 7 . . 31 . 4 4 11 . 4 5 . 8 . 62 Average Corruption 6 | . . 5 5 5 5 . . . 1 2 3 3 6 6 . . 21 . 3 4 4 . 2 2 . 4 . 15 Corruption Purged 13 | . . . . . . . . . . . . . . 7 . . . . . . . . 6 . . . . . Corruption Blocked 6 | . . . . . . . . . . . . . . . . . . . . . . . . 4 1 1 . . Effects 459 | . . 15 4 22 7 . . . 8 42 1 23 11 97 . . 79 . 29 3 25 . 19 11 . 2 . 61 Message Errors 102 | . . 2 2 6 1 . . . 4 13 1 5 1 21 . . 17 . 7 1 2 . 6 2 . 1 . 10 Matter Fused 111 | . . 3 . 6 1 . . . 2 10 . 5 4 25 . . 17 . 8 1 8 . 5 4 . . . 12 Heat Flow Errors 54 | . . 2 . 2 . . . . . 8 . 4 1 12 . . 7 . 6 . 1 . 3 2 . . . 6 Energy Discharges 55 | . . 4 1 5 2 . . . . 6 . 1 3 12 . . 8 . 2 1 4 . 1 1 . . . 4 Parts Rejected 4 | . . . . . . . . . 1 . . 1 . . . . . . . . . . . . . . . 2 Parts Fused 7 | . . . . 2 . . . . . . . . 1 1 . . . . . . . . 1 1 . . . 1 Data Loss (minor) 56 | . . 2 1 1 2 . . . . 4 . 4 . 9 . . 10 . 5 . 5 . 3 1 . . . 9 Data Loss (major) 20 | . . 1 . . . . . . . 1 . . 1 7 . . 5 . . . 1 . . . . 1 . 3 Misfires 8 | . . . . . . . . . 1 . . . . 3 . . 4 . . . . . . . . . . . Alerts 17 | . . . . . . . . . . . . 3 . 4 . . 3 . . . 3 . . . . . . 4 Misdirections 5 | . . . . . . . . . . . . . . . . . 1 . . . . . . . . . . 4 Weapon Failures 20 | . . 1 . . 1 . . . . . . . . 3 . . 7 . 1 . 1 . . . . . . 6 Overload Shots 7 | . . . . . . . . . . . . . . . . . . . 7 . . . . . . . . . Effects 1 | . . . . . . . . . . . . . . . . . . . 1 . . . . . . . . . Heat Surge 1 | . . . . . . . . . . . . . . . . . . . 1 . . . . . . . . . Overflow Damage 1726 | . . . . . . 15 38 64 39 239 . . . 26 . . 3 84 . . . . 787 396 1 . . 34 Projectiles 615 | . . . . . . 13 6 64 39 208 . . . 14 . . . 84 . . . . 170 3 . . . 14 Explosions 131 | . . . . . . . 32 . . 31 . . . . . . . . . . . . 48 . . . . 20 Melee 980 | . . . . . . 2 . . . . . . . 12 . . 3 . . . . . 569 393 1 . . . Knockbacks 86 | . 1 . . . . 6 12 3 6 5 . 3 4 3 . . . 21 . . . 3 3 13 2 . . 1 Impact 7 | . 1 . . . . . . . . . . . . 1 . . . . . . . 1 . 2 1 . . 1 Kinetic 75 | . . . . . . 6 12 3 5 5 . 3 4 2 . . . 20 . . . 1 2 11 1 . . . Secondary 4 | . . . . . . . . . 1 . . . . . . . . 1 . . . 1 1 . . . . . Self-Inflicted Damage 2010 | . 80 . . . . 34 62 . 58 215 . 15 . . . . 24 . 13 . 304 . 189 472 . . . 544 Shots 60 | . 2 . . . . 1 2 . 4 8 . . . . . . . . 1 . 17 . . 11 . . . 14 Rammed 41 | . 5 2 . . . 3 4 . . 1 . . . . . . 1 . . . . 1 . 12 . . . 12 Targets Rammed 71 | . 7 3 . . . 3 6 2 3 2 . . . 2 . . 4 . . . . 3 . 12 3 . . 21 Kicked 22 | . 1 . . . . . . . 3 . . . . 2 . . 3 . . . . 1 . . 3 . . 9 Crushed 8 | . 1 1 . . . . 2 2 . 1 . . . . . . . . . . . 1 . . . . . . Highest Temperature 623 | . 567 209 . 244 . 288 260 392 300 418 . 269 107 396 423 156 201 122 623 . 423 . 144 547 361 351 6 419 Average Temperature 101 | . 116 74 . 118 . 86 64 144 80 126 . 114 53 123 182 68 20 38 111 . 118 . 81 134 165 147 3 134 Received Heat Transfer 7506 | . 234 231 . . 225 414 693 384 192 897 . 96 63 510 54 18 315 859 916 . 431 . 33 247 124 8 . 562 Effects 34 | . 5 . . . . 1 . 1 3 6 . . . 3 . . . . 5 . 2 . . 4 2 2 . . Shutdowns 7 | . 1 . . . . . . 1 . 1 . . . . . . . . . . 1 . . 1 . 2 . . Energy Bleed 6 | . . . . . . 1 . . . 1 . . . 1 . . . . 1 . 1 . . 1 . . . . Interference 16 | . 2 . . . . . . . 3 3 . . . 2 . . . . 2 . . . . 2 2 . . . Matter Decay 2 | . . . . . . . . . . 1 . . . . . . . . 1 . . . . . . . . . Short Circuit 2 | . 1 . . . . . . . . . . . . . . . . . 1 . . . . . . . . . Damage (core) 1 | . 1 . . . . . . . . . . . . . . . . . . . . . . . . . . . Siege Activations 2 | . . . . . . . . . . . . . 2 . . . . . . . . . . . . . . . Total Turns 39 | . . . . . . . . . . . . . 39 . . . . . . . . . . . . . . . Longest Duration 21 | . . . . . . . . . . . . . 21 . . . . . . . . . . . . . . . Robots Corrupted 19 | . . . . . . . . . 1 7 . . . 1 . . 1 . . . 1 . 2 . 1 . . 5 Combat Hostiles 12 | . . . . . . . . . . 4 . . . . . . . . . . 1 . 2 . . . . 5 Parts Fried 64 | . 3 . . . . . 1 2 7 20 . . . 4 . . 5 . 7 . 2 . 3 . 2 . . 8 Impact Corruptions 6 | . . . . . . 1 . . . . . . . 1 . . 1 . . . . . 2 . 1 . . . Robots Melted 8 | . . . . . . . . . . . . . . 1 1 . . 1 1 . 1 . . 3 . . . . Combat Hostiles 7 | . . . . . . . . . . . . . . . 1 . . 1 1 . 1 . . 3 . . . . Parts Melted 65 | . 2 . . . . 1 . 3 1 . . . 1 10 1 . 2 7 10 . 3 . . 19 . . . 5 Heat Transferred 32057 | 125 2396 . . . . 1073 250 . 200 2459 . 461 575 1621 1036 370 3097 4150 6420 . 850 . . 3977 . 444 . 2553 Parts Sabotaged . | . . . . . . . . . . . . . . . . . . . . . . . . . . . . . Parts Stolen . | . . . . . . . . . . . . . . . . . . . . . . . . . . . . . Parts Stripped 8 | . . . . . . . . . . . . . . . . . . . . . . . . 8 . . . . Power Chain Reactions 16 | . 1 . . . . . 3 . 4 4 . . . . . . . . 1 . 1 . . . . . . 2 Alert | -11 -10 -9 -9 -9 -8 -8 -8 -8 -6 -6 -6 -6 -5 -5 -5 -5 -5 -4 -4 -4 -4 -3 -3 -3 -2 -2 -1 -1 ------- Run | Yrd Mat Mat Min Exi Min Mat Sto Rec Fac Gar Fac Gar Fac Ext Cet Arc Hub Fac Gar Fac Gar Res Qua Sec Res Tes Acc Com Peak Influence 1867 | 15 447 617 247 . 160 275 967 386 201 1644 863 799 525 359 240 258 489 530 1867 1003 1052 610 270 655 519 498 305 889 Initial 980 | . 9 141 240 . . 62 97 376 50 95 863 604 419 217 201 62 2 176 371 980 702 591 116 27 357 218 298 195 Average 371 | 5 230 315 245 . 88 142 534 61 59 806 863 746 420 89 185 88 314 204 1044 983 893 380 116 301 438 314 299 386 Maximum Alert Level 5 | . 2 2 1 . . 1 3 1 1 5 3 3 2 1 1 1 2 2 5 3 3 2 1 2 2 2 1 3 Low Security (%) 43 | 100 38 23 . . 100 59 28 87 98 3 . . . 85 46 91 16 68 . . . 41 84 33 . . . 7 Level 1 22 | . 52 51 100 . . 40 10 12 1 14 . . 21 14 53 8 59 12 1 . . 9 15 31 20 81 100 62 Level 2 14 | . 8 24 . . . . 11 . . 22 . 24 78 . . . 23 18 22 . 4 48 . 35 79 18 . 22 Level 3 14 | . . . . . . . 49 . . 35 100 75 . . . . . . 36 100 95 . . . . . . 7 Level 4 3 | . . . . . . . . . . 20 . . . . . . . . 26 . . . . . . . . . Level 5 1 | . . . . . . . . . . 3 . . . . . . . . 13 . . . . . . . . . High Security . | . . . . . . . . . . . . . . . . . . . . . . . . . . . . . Max Security . | . . . . . . . . . . . . . . . . . . . . . . . . . . . . . Squads Dispatched 77 | . 5 7 . . . 2 6 . 3 . . . 4 4 . . 7 8 . 1 . 5 8 10 1 2 . 4 Investigation 18 | . 2 6 . . . 1 . . . . . . 1 2 . . . 2 . 1 . 3 . . . . . . Extermination 17 | . . . . . . . . . 2 . . . 2 . . . 3 3 . . . . 2 2 . . . 3 Reinforcement 31 | . 3 1 . . . 1 2 . . . . . 1 2 . . 4 1 . . . 2 5 5 1 2 . 1 Assault 5 | . . . . . . . 2 . . . . . . . . . . 2 . . . . . 1 . . . . Garrison 4 | . . . . . . . 2 . 1 . . . . . . . . . . . . . 1 . . . . . Intercept 2 | . . . . . . . . . . . . . . . . . . . . . . . . 2 . . . . Searches Triggered . | . . . . . . . . . . . . . . . . . . . . . . . . . . . . . Construction Impeded 7 | . . . . . . . 1 . . . . . 1 1 . . 3 . . . . . . 1 . . . . Haulers Reinforced . | . . . . . . . . . . . . . . . . . . . . . . . . . . . . . Active Scanning Responses . | . . . . . . . . . . . . . . . . . . . . . . . . . . . . . Cargo Convoy Interrupts . | . . . . . . . . . . . . . . . . . . . . . . . . . . . . . Stealth | -11 -10 -9 -9 -9 -8 -8 -8 -8 -6 -6 -6 -6 -5 -5 -5 -5 -5 -4 -4 -4 -4 -3 -3 -3 -2 -2 -1 -1 --------- Run | Yrd Mat Mat Min Exi Min Mat Sto Rec Fac Gar Fac Gar Fac Ext Cet Arc Hub Fac Gar Fac Gar Res Qua Sec Res Tes Acc Com Distress Signals 30 | . 2 2 . . . 1 3 . . . . . 2 4 2 . 2 2 . . . 3 2 1 2 . . 2 Communications Jammed 4 | . . . . . . . . . . . . . . . . . 4 . . . . . . . . . . . Distress Signals 4 | . . . . . . . . . . . . . . . . . 4 . . . . . . . . . . . Times Spotted 655 | . 27 30 . . 6 31 52 5 20 31 . 9 16 40 9 15 47 43 52 . 28 12 24 36 27 25 5 65 Peak Tracking Total 17 | . 6 11 . . 3 5 6 4 4 4 . 4 4 5 5 2 6 6 6 . 7 6 6 9 12 15 2 17 Tactical Retreats 42 | . 2 3 . . 1 . . . . 2 . . . 2 . . 1 2 5 . 4 . 3 . 2 3 1 11 Traps | -11 -10 -9 -9 -9 -8 -8 -8 -8 -6 -6 -6 -6 -5 -5 -5 -5 -5 -4 -4 -4 -4 -3 -3 -3 -2 -2 -1 -1 ------- Run | Yrd Mat Mat Min Exi Min Mat Sto Rec Fac Gar Fac Gar Fac Ext Cet Arc Hub Fac Gar Fac Gar Res Qua Sec Res Tes Acc Com Traps Triggered 27 | . 1 . . . . . 2 . . 6 . 2 . 1 . . 2 . 3 . 2 . . 2 2 . . 4 Indirectly 1 | . . . . . . . . . . . . . . . . . . . . . 1 . . . . . . . Trap Hack Attempts . | . . . . . . . . . . . . . . . . . . . . . . . . . . . . . Triggered . | . . . . . . . . . . . . . . . . . . . . . . . . . . . . . Disarmed . | . . . . . . . . . . . . . . . . . . . . . . . . . . . . . Reprogrammed 1 | . . . . . . . . . . . . . . . . . 1 . . . . . . . . . . . Reused 1 | . . . . . . . . . . . . . . . . . 1 . . . . . . . . . . . Traps Extracted . | . . . . . . . . . . . . . . . . . . . . . . . . . . . . . Installed . | . . . . . . . . . . . . . . . . . . . . . . . . . . . . . Triggered 1 | . . . . . . . . . . . . . . . . . 1 . . . . . . . . . . . Machines | -11 -10 -9 -9 -9 -8 -8 -8 -8 -6 -6 -6 -6 -5 -5 -5 -5 -5 -4 -4 -4 -4 -3 -3 -3 -2 -2 -1 -1 ---------- Run | Yrd Mat Mat Min Exi Min Mat Sto Rec Fac Gar Fac Gar Fac Ext Cet Arc Hub Fac Gar Fac Gar Res Qua Sec Res Tes Acc Com Machines Disabled 60 | . . . . . . 4 3 1 2 2 . 1 . 2 1 3 7 5 3 . . . 10 10 . 2 . 4 Max in Single Turn 2 | . . . . . . 1 1 1 1 1 . 1 . 2 1 1 2 1 1 . . . 1 2 . 1 . 1 Garrison Access 3 | . . . . . . . 1 . . . . . . . . . 1 . . . . 1 . . . . . . Garrison Relay 6 | . . . . . . . . . . 2 . 1 . . . . . . 3 . . . . . . . . . Phase Generator 1 | . . . . . . . . . . . . . . . . . . . . . . . . . . . . 1 Network Hub 2 | . . . . . . . . . . . . . . . . . 2 . . . . . . . . . . . Machines Repaired . | . . . . . . . . . . . . . . . . . . . . . . . . . . . . . Machines Dismantled 1 | . . . . . . . . . . . . . . . 1 . . . . . . . . . . . . . Machines Sabotaged . | . . . . . . . . . . . . . . . . . . . . . . . . . . . . . Overloaded Fab Kills . | . . . . . . . . . . . . . . . . . . . . . . . . . . . . . Hacking | -11 -10 -9 -9 -9 -8 -8 -8 -8 -6 -6 -6 -6 -5 -5 -5 -5 -5 -4 -4 -4 -4 -3 -3 -3 -2 -2 -1 -1 --------- Run | Yrd Mat Mat Min Exi Min Mat Sto Rec Fac Gar Fac Gar Fac Ext Cet Arc Hub Fac Gar Fac Gar Res Qua Sec Res Tes Acc Com Machines Accessed 87 | . 4 7 1 2 . 5 7 11 2 . 1 . 3 12 1 . 7 8 3 1 . 2 5 . . 1 3 1 Terminals 57 | . 3 4 1 . . 4 4 6 1 . . . 2 10 1 . 6 4 3 . . . 3 . . 1 3 1 Fabricators 2 | . . . . . . . . . . . . . . . . . . 1 . . . 1 . . . . . . Repair Stations . | . . . . . . . . . . . . . . . . . . . . . . . . . . . . . Recycling Units 13 | . 1 2 . . . . 2 4 . . . . . 2 . . . 2 . . . . . . . . . . Scanalyzers 5 | . . 1 . . . 1 . . . . . . 1 . . . . . . . . . 2 . . . . . Garrison Access 7 | . . . . . . . 1 . 1 . 1 . . . . . 1 1 . 1 . 1 . . . . . . Total Hacks 296 | . 9 33 3 2 . 21 20 39 4 . 1 . 7 28 2 . 28 51 11 3 . 11 13 . . 4 5 1 Successful 162 | . 3 15 2 2 . 13 10 26 4 . 1 . 2 13 1 . 20 27 2 3 . 9 4 . . 1 3 1 Failed 134 | . 6 18 1 . . 8 10 13 . . . . 5 15 1 . 8 24 9 . . 2 9 . . 3 2 . Catastrophic 19 | . 2 2 1 . . 2 . . . . . . 1 1 . . 1 3 2 . . . 3 . . . 1 . Database Lockouts . | . . . . . . . . . . . . . . . . . . . . . . . . . . . . . Manual 179 | . 8 23 3 1 . 11 13 24 3 . . . 1 10 1 . 24 44 . 1 . 3 9 . . . . . Terminals 189 | . 7 21 3 . . 11 9 19 3 . . . 3 23 2 . 26 31 11 . . . 10 . . 4 5 1 Fabricators 19 | . . . . . . . . . . . . . . . . . . 9 . . . 10 . . . . . . Repair Stations . | . . . . . . . . . . . . . . . . . . . . . . . . . . . . . Recycling Units 47 | . 2 6 . . . . 8 18 . . . . . 5 . . . 8 . . . . . . . . . . Scanalyzers 23 | . . 6 . . . 10 . . . . . . 4 . . . . . . . . . 3 . . . . . Garrison Access 14 | . . . . . . . 3 . 1 . 1 . . . . . 2 3 . 3 . 1 . . . . . . Terminal Hacks 59 | . . 4 2 2 . 2 3 7 . . . . . 9 1 . 13 7 2 . . . 2 . . 1 3 1 Record 2 | . . . . 1 . . . . . . . . . . 1 . . . . . . . . . . . . . Part Schematic 6 | . . . 2 . . . . 1 . . . . . 1 . . 2 . . . . . . . . . . . Robot Schematic 4 | . . 1 . . . . . 1 . . . . . 1 . . 1 . . . . . . . . . . . Robot Analysis 1 | . . 1 . . . . . . . . . . . . . . . . . . . . . . . . . . Open Door 14 | . . . . . . . 2 . . . . . . 6 . . . . 1 . . . . . . 1 3 1 Branch Access Points 4 | . . 1 . . . 1 1 . . . . . . . . . 1 . . . . . . . . . . . Emergency Access Points 1 | . . . . . . . . . . . . . . . . . . . 1 . . . . . . . . . Terminal Index 1 | . . . . . . . . . . . . . . . . . . 1 . . . . . . . . . . Fabricator Index 1 | . . . . . . . . . . . . . . . . . . 1 . . . . . . . . . . Repair Station Index 1 | . . . . . . . . . . . . . . . . . . 1 . . . . . . . . . . Recycling Unit Index 1 | . . . . . . . . . . . . . . . . . . 1 . . . . . . . . . . Garrison Index 2 | . . . . . . . . . . . . . . . . . 1 1 . . . . . . . . . . Unreport Threat 7 | . . . . . . 1 . 3 . . . . . . . . 2 . . . . . 1 . . . . . Locate Traps 3 | . . 1 . . . . . . . . . . . 1 . . . 1 . . . . . . . . . . Reprogram Traps 1 | . . . . . . . . . . . . . . . . . 1 . . . . . . . . . . . Dispatch Records 1 | . . . . . . . . . . . . . . . . . 1 . . . . . . . . . . . Maintenance Status 1 | . . . . . . . . . . . . . . . . . 1 . . . . . . . . . . . Zone Layout 5 | . . . . . . . . . . . . . . . . . 3 1 . . . . 1 . . . . . Derelict Proto ID Bank 1 | . . . . 1 . . . . . . . . . . . . . . . . . . . . . . . . Release Object 2 | . . . . . . . . 2 . . . . . . . . . . . . . . . . . . . . Fabricator Hacks 7 | . . . . . . . . . . . . . . . . . . 1 . . . 6 . . . . . . Load Schematic 4 | . . . . . . . . . . . . . . . . . . 1 . . . 3 . . . . . . Build 3 | . . . . . . . . . . . . . . . . . . . . . . 3 . . . . . . Repair Station Hacks . | . . . . . . . . . . . . . . . . . . . . . . . . . . . . . Recycling Unit Hacks 10 | . 1 . . . . . 2 4 . . . . . 2 . . . 1 . . . . . . . . . . Retrieve Components 10 | . 1 . . . . . 2 4 . . . . . 2 . . . 1 . . . . . . . . . . Scanalyzer 19 | . . 6 . . . 10 . . . . . . 2 . . . . . . . . . 1 . . . . . Insert Component 10 | . . 3 . . . 5 . . . . . . 1 . . . . . . . . . 1 . . . . . Analyze 9 | . . 3 . . . 5 . . . . . . 1 . . . . . . . . . . . . . . . Garrison Access Hacks 8 | . . . . . . . . . 1 . 1 . . . . . 1 2 . 2 . 1 . . . . . . Unlock Access 4 | . . . . . . . . . 1 . 1 . . . . . . 1 . 1 . . . . . . . . Seal Access 2 | . . . . . . . . . . . . . . . . . 1 . . . . 1 . . . . . . Coupler Status 2 | . . . . . . . . . . . . . . . . . . 1 . 1 . . . . . . . . Unauthorized Hacks 59 | . 2 5 . . . 1 5 15 3 . . . . 2 . . 6 16 . 1 . 2 1 . . . . . Terminals 30 | . 1 1 . . . 1 1 6 3 . . . . 1 . . 6 9 . . . . 1 . . . . . Track 5 | . . . . . . . . . 1 . . . . . . . 2 1 . . . . 1 . . . . . Assimilate 1 | . . . . . . . 1 . . . . . . . . . . . . . . . . . . . . . Botnet 11 | . 1 1 . . . 1 . 1 1 . . . . 1 . . 3 2 . . . . . . . . . . Disrupt 2 | . . . . . . . . . . . . . . . . . 1 1 . . . . . . . . . . Operators 3 | . . . . . . . . . 1 . . . . . . . . 2 . . . . . . . . . . Skim 8 | . . . . . . . . 5 . . . . . . . . . 3 . . . . . . . . . . Fabricators 3 | . . . . . . . . . . . . . . . . . . 1 . . . 2 . . . . . . Prioritize 1 | . . . . . . . . . . . . . . . . . . . . . . 1 . . . . . . Liberate 2 | . . . . . . . . . . . . . . . . . . 1 . . . 1 . . . . . . Repair Stations . | . . . . . . . . . . . . . . . . . . . . . . . . . . . . . Recycling Units 24 | . 1 4 . . . . 4 9 . . . . . 1 . . . 5 . . . . . . . . . . Monitor 2 | . . . . . . . 1 . . . . . . . . . . 1 . . . . . . . . . . Reject 10 | . . 1 . . . . 2 4 . . . . . 1 . . . 2 . . . . . . . . . . Recyclers 4 | . . 1 . . . . 1 1 . . . . . . . . . 1 . . . . . . . . . . Mask 5 | . . . . . . . . 4 . . . . . . . . . 1 . . . . . . . . . . Tunnel 3 | . 1 2 . . . . . . . . . . . . . . . . . . . . . . . . . . Scanalyzers . | . . . . . . . . . . . . . . . . . . . . . . . . . . . . . Garrison Access 2 | . . . . . . . . . . . . . . . . . . 1 . 1 . . . . . . . . Eject 2 | . . . . . . . . . . . . . . . . . . 1 . 1 . . . . . . . . Data Cores Recovered 3 | . . . . . . . . . . . . . . 1 . . . . . . . . 1 1 . . . . Used . | . . . . . . . . . . . . . . . . . . . . . . . . . . . . . Hacking Detections 64 | . 4 7 1 . . 5 4 6 1 . . . 1 10 1 . 7 7 3 . . 1 5 . . 1 . . Full Trace Events 17 | . 3 5 . . . 1 1 1 . . . . 1 2 . . . 1 1 . . 1 . . . . . . Feedback Events 1 | . . 1 . . . . . . . . . . . . . . . . . . . . . . . . . . Hackware Fried 1 | . . 1 . . . . . . . . . . . . . . . . . . . . . . . . . . Feedback Blocked . | . . . . . . . . . . . . . . . . . . . . . . . . . . . . . Robot Schematics Acquired 10 | . . 1 . . . . . 1 . . . . . 1 . . 1 . . . . . 1 5 . . . . Robots Built 5 | . . . . . . . . . . . . . . . . . . . . . . 5 . . . . . . Authchips 2 | . . . . . . . . . . . . . . . . . . . . . . 2 . . . . . . Time 143 | . . . . . . . . . . . . . . . . . . . . . . 143 . . . . . . Total Robot Build Rating 23 | . . . . . . . . . . . . . . . . . . . . . . 23 . . . . . . Part Schematics Acquired 46 | . . 3 2 . . 5 . 1 . . . . 1 1 . . 2 . . . . . 17 11 . 3 . . Parts Built . | . . . . . . . . . . . . . . . . . . . . . . . . . . . . . Authchips . | . . . . . . . . . . . . . . . . . . . . . . . . . . . . . Time . | . . . . . . . . . . . . . . . . . . . . . . . . . . . . . Total Part Build Rating . | . . . . . . . . . . . . . . . . . . . . . . . . . . . . . Parts Repaired . | . . . . . . . . . . . . . . . . . . . . . . . . . . . . . Time . | . . . . . . . . . . . . . . . . . . . . . . . . . . . . . Parts Recycled . | . . . . . . . . . . . . . . . . . . . . . . . . . . . . . Recycled Matter . | . . . . . . . . . . . . . . . . . . . . . . . . . . . . . Retrieved Matter . | . . . . . . . . . . . . . . . . . . . . . . . . . . . . . Retrieved Components 25 | . . . . . . . 11 6 . . . . . 6 . . . 2 . . . . . . . . . . Parts Scanalyzed 9 | . . 3 . . . 5 . . . . . . 1 . . . . . . . . . . . . . . . Part Schematics Acquired 9 | . . 3 . . . 5 . . . . . . 1 . . . . . . . . . . . . . . . Parts Damaged . | . . . . . . . . . . . . . . . . . . . . . . . . . . . . . Bothacking | -11 -10 -9 -9 -9 -8 -8 -8 -8 -6 -6 -6 -6 -5 -5 -5 -5 -5 -4 -4 -4 -4 -3 -3 -3 -2 -2 -1 -1 ------------ Run | Yrd Mat Mat Min Exi Min Mat Sto Rec Fac Gar Fac Gar Fac Ext Cet Arc Hub Fac Gar Fac Gar Res Qua Sec Res Tes Acc Com Used RIF Installer 3 | . . . . . . . . . . 2 . . . . . . . . 1 . . . . . . . . . Threat Obfuscator 1 | . . . . . . . . . . 1 . . . . . . . . . . . . . . . . . . Zone Cloak 1 | . . . . . . . . . . . . . . . . . . . 1 . . . . . . . . . Robots Hacked 35 | . . . . . . . . . . . . . 2 3 . 4 . . 6 1 8 4 7 . . . . . Non-combat 15 | . . . . . . . . . . . . . 2 1 . 3 . . . 1 1 4 3 . . . . . Combat 20 | . . . . . . . . . . . . . . 2 . 1 . . 6 . 7 . 4 . . . . . Robot Hacks Applied 51 | . . . . . . . . . . . . . 2 6 . 7 . . 8 2 9 8 9 . . . . . parse_system 3 | . . . . . . . . . . . . . . . . 3 . . . . . . . . . . . . map_walls 1 | . . . . . . . . . . . . . . . . . . . . . . 1 . . . . . . find_fabricator 1 | . . . . . . . . . . . . . . . . . . . . . . 1 . . . . . . drop_inventory 2 | . . . . . . . . . . . . . . . . . . . . . . 1 1 . . . . . find_recycling 1 | . . . . . . . . . . . . . . . . . . . . 1 . . . . . . . . purge_threat 4 | . . . . . . . . . . . . . . 1 . 1 . . . . . 2 . . . . . . block_reporting 1 | . . . . . . . . . . . . . . 1 . . . . . . . . . . . . . . summon_haulers 2 | . . . . . . . . . . . . . . . . 1 . . . . . 1 . . . . . . map_route 2 | . . . . . . . . . . . . . 2 . . . . . . . . . . . . . . . report_schematics 1 | . . . . . . . . . . . . . . . . . . . . . . . 1 . . . . . reboot_propulsion 1 | . . . . . . . . . . . . . . 1 . . . . . . . . . . . . . . overload_power 1 | . . . . . . . . . . . . . . . . . . . . . . . 1 . . . . . amplify_resonance 6 | . . . . . . . . . . . . . . . . . . . 5 . 1 . . . . . . . disable_weapons 3 | . . . . . . . . . . . . . . 1 . . . . . . 2 . . . . . . . overwrite_iff 6 | . . . . . . . . . . . . . . . . . . . 3 . 3 . . . . . . . streamctrl_low 1 | . . . . . . . . . . . . . . . . . . . . . . . 1 . . . . . formatsys_low 11 | . . . . . . . . . . . . . . 1 . 2 . . . 1 . 2 5 . . . . . formatsys_high 4 | . . . . . . . . . . . . . . 1 . . . . . . 3 . . . . . . . Relay Couplers Released 35 | . . . . . . . 2 . . 10 . 3 . . . . 1 3 13 3 . . . . . . . . Ejected 6 | . . . . . . . . . . . . . . . . . . 3 . 3 . . . . . . . . Machine Destruction 29 | . . . . . . . 2 . . 10 . 3 . . . . 1 . 13 . . . . . . . . . Attached 19 | . . . . . . . . . . . . . 1 3 . 1 . . 7 . 4 2 1 . . . . . Fabnet Peak Effective % . | . . . . . . . . . . . . . . . . . . . . . . . . . . . . . Robots Rewired 25 | . . . . . . . . . . . . . . 23 . . . . 2 . . . . . . . . . Allies Hacked 1 | . . . . . . . . . . . . . . . . . . . . . . 1 . . . . . . Hacks Repelled . | . . . . . . . . . . . . . . . . . . . . . . . . . . . . . Allies | -11 -10 -9 -9 -9 -8 -8 -8 -8 -6 -6 -6 -6 -5 -5 -5 -5 -5 -4 -4 -4 -4 -3 -3 -3 -2 -2 -1 -1 -------- Run | Yrd Mat Mat Min Exi Min Mat Sto Rec Fac Gar Fac Gar Fac Ext Cet Arc Hub Fac Gar Fac Gar Res Qua Sec Res Tes Acc Com Total Allies 70 | . . . . . . . . . . . . . . 33 5 2 . . 5 1 6 7 5 . . . . 6 Largest Group 11 | . . . . . . . . . . . . . . 11 5 6 6 . 2 3 3 7 9 . . . . 5 Highest-Rated Group 543 | . . . . . . . . . . . . . . 374 543 536 474 . 89 109 157 236 301 . . . . 71 Highest-Rated Ally 159 | . . . . . . . . . . . . . . 159 159 152 96 . 51 51 116 116 49 . . . . 15 Total Orders 30 | . . . . . . . . . . . . . . 3 . . 4 . . 1 7 4 11 . . . . . STAY 13 | . . . . . . . . . . . . . . 2 . . 3 . . . 2 2 4 . . . . . ROAM 1 | . . . . . . . . . . . . . . . . . . . . . . 1 . . . . . . FOLLOW 5 | . . . . . . . . . . . . . . 1 . . 1 . . . 2 . 1 . . . . . GUARD 1 | . . . . . . . . . . . . . . . . . . . . . 1 . . . . . . . AID 6 | . . . . . . . . . . . . . . . . . . . . . . 1 5 . . . . . DROP 1 | . . . . . . . . . . . . . . . . . . . . . 1 . . . . . . . COLLECT 3 | . . . . . . . . . . . . . . . . . . . . 1 1 . 1 . . . . . Ally Attacks 457 | . . . . . . . . . . . . . . 196 34 23 66 . 7 . 33 3 81 . . . . 14 Total Damage 13430 | . . . . . . . . . . . . . . 4522 1248 915 2297 . 241 . 1452 316 2172 . . . . 267 Kills 66 | . . . . . . . . . . . . . . 29 7 3 8 . . . 6 1 12 . . . . . Allies Corrupted 2 | . . . . . . . . . . . . . . . . . . . . . . 1 1 . . . . . Allies Melted . | . . . . . . . . . . . . . . . . . . . . . . . . . . . . . Intel | -11 -10 -9 -9 -9 -8 -8 -8 -8 -6 -6 -6 -6 -5 -5 -5 -5 -5 -4 -4 -4 -4 -3 -3 -3 -2 -2 -1 -1 ------- Run | Yrd Mat Mat Min Exi Min Mat Sto Rec Fac Gar Fac Gar Fac Ext Cet Arc Hub Fac Gar Fac Gar Res Qua Sec Res Tes Acc Com Robot Analysis Total 1 | . . 1 . . . . . . . . . . . . . . . . . . . . . . . . . . Derelict Logs Recovered . | . . . . . . . . . . . . . . . . . . . . . . . . . . . . . Drone Launches . | . . . . . . . . . . . . . . . . . . . . . . . . . . . . . Drone Recoveries . | . . . . . . . . . . . . . . . . . . . . . . . . . . . . . Exploration | -11 -10 -9 -9 -9 -8 -8 -8 -8 -6 -6 -6 -6 -5 -5 -5 -5 -5 -4 -4 -4 -4 -3 -3 -3 -2 -2 -1 -1 ------------- Run | Yrd Mat Mat Min Exi Min Mat Sto Rec Fac Gar Fac Gar Fac Ext Cet Arc Hub Fac Gar Fac Gar Res Qua Sec Res Tes Acc Com Turns Passed 35687 | 85 1462 623 71 779 285 1999 1412 3307 1854 2965 27 1199 738 3722 713 564 2385 1775 2942 59 1037 795 1393 1012 452 138 295 1599 Spaces Moved 14928 | 60 597 281 41 445 115 715 397 1210 650 851 10 318 301 1054 189 160 834 546 1111 37 298 455 992 696 480 457 238 1390 Core 2 | 1 . . . . . . . . . . . . . . . . . . . . . . . . . . . 1 Treads 6902 | . 127 216 41 445 115 715 397 1176 300 512 10 263 232 42 13 53 . 171 252 37 101 175 277 509 10 . . 713 Legs 5366 | . 324 65 . . . . . 34 350 339 . . 43 761 176 107 744 347 859 . 164 280 . . 77 164 190 342 Wheels 233 | 59 146 . . . . . . . . . . . . . . . . 28 . . . . . . . . . . Hover 917 | . . . . . . . . . . . . . 19 189 . . 90 . . . . . 382 47 190 . . . Flight 633 | . . . . . . . . . . . . 55 7 62 . . . . . . 33 . 333 140 3 . . . Fastest Speed 39 | 50 90 120 170 170 170 166 238 190 140 159 245 96 152 129 324 165 165 82 103 126 126 128 60 39 47 47 47 47 Average Speed 176 | 88 150 159 170 170 170 235 239 226 174 268 245 217 193 201 324 213 193 219 198 126 202 147 94 65 110 50 147 73 Slowest Speed 439 | 90 190 250 170 170 170 246 325 400 220 439 245 245 310 374 324 267 290 252 316 126 251 251 138 183 271 159 159 159 Overloaded Moves . | . . . . . . . . . . . . . . . . . . . . . . . . . . . . . Propulsion Burnouts . | . . . . . . . . . . . . . . . . . . . . . . . . . . . . . Robots Hopped . | . . . . . . . . . . . . . . . . . . . . . . . . . . . . . Cave-ins Triggered . | . . . . . . . . . . . . . . . . . . . . . . . . . . . . . Teleports 3 | . . . . . . . . . . . . . . . . . . . . . . . . 2 1 . . . Microwarps 48 | . . . . . . . . . . . . . . . . . . . . . . . . . 10 15 2 21 Exploration Rate (%) 45 | 3 65 37 13 62 36 52 77 98 19 78 . 35 7 77 76 82 76 20 88 2 27 15 83 37 9 53 7 42 Regions Visited 28 Branch Regions 13 Pre-discovered Areas 5 | . 1 2 1 1 . . . . . . . . . . . . . . . . . . . . . . . . Known Exits Taken 11 | . . 1 1 1 1 1 1 1 1 . 1 . . . . . . 1 . 1 . . . . . . . . Unknown Exits Taken 13 | 1 1 . . . . . . . . . . . 1 1 1 1 1 . . . . 1 1 1 1 1 1 . Scrap Searched 1 | . . . . . 1 . . . . . . . . . . . . . . . . . . . . . . . Spaces Dug 33 | . . . . . . 6 6 . . . . . . . . . 3 5 1 . 1 . 6 5 . . . . Terrain Destroyed 684 | . 60 . . . . 73 101 6 14 10 . . 6 34 1 10 77 48 16 . 12 . 16 9 . . . 191 Melee 11 | . . . . . . . . . . . . . . . . . . . 1 . . . 6 4 . . . . Projectile 284 | . . . . . . 29 40 6 . 2 . . 3 34 1 10 77 48 13 . 1 . . 4 . . . 16 AOE 383 | . 60 . . . . 44 61 . 14 8 . . . . . . . . 2 . 11 . 8 . . . . 175 Terrain Rammed 14 | . . . . . . . . . . . . 1 . . . . . . . . . . 5 4 . . . 4 Walls Destroyed 8 | . . . . . . . . . . . . . . . . . . . . . . . 5 2 . . . 1 Machines Disabled 3 | . . . . . . . . . . . . 1 . . . . . . . . . . . 1 . . . 1 Actions | -11 -10 -9 -9 -9 -8 -8 -8 -8 -6 -6 -6 -6 -5 -5 -5 -5 -5 -4 -4 -4 -4 -3 -3 -3 -2 -2 -1 -1 --------- Run | Yrd Mat Mat Min Exi Min Mat Sto Rec Fac Gar Fac Gar Fac Ext Cet Arc Hub Fac Gar Fac Gar Res Qua Sec Res Tes Acc Com Total 22532 | 78 1034 411 43 467 165 913 698 1752 1272 1388 12 770 388 2527 251 345 1353 914 1619 48 653 577 1348 1007 409 209 202 1679 Wait 5587 | . 304 49 . 10 6 30 178 489 524 316 2 361 28 1205 29 131 346 239 283 8 243 57 214 98 37 1 . 399 Move 14077 | 59 596 280 40 444 114 714 396 1209 650 850 10 317 300 1053 188 159 833 545 1110 37 297 454 991 695 290 178 191 1077 Hop . | . . . . . . . . . . . . . . . . . . . . . . . . . . . . . Pick Up 282 | 7 18 8 1 5 2 24 9 7 12 41 . 21 7 14 5 6 11 11 11 . 10 8 14 9 9 4 . 8 Fast Attach 192 | 7 9 6 . . 3 19 7 3 5 9 . 7 1 2 . . 8 4 18 . 1 12 9 17 12 8 1 24 Attach 160 | . 6 5 . 1 . 6 8 4 9 15 . 3 4 11 2 1 5 7 5 . 7 9 9 14 9 3 4 13 Detach 58 | . . 3 . 1 . 1 1 2 1 4 . 2 1 5 . . 4 1 5 . . 2 1 5 6 . 2 11 Swap 109 | . 10 3 1 2 2 9 4 1 2 2 . 1 3 9 4 5 8 2 17 . 4 2 7 6 2 . . 3 Drop 369 | . 17 14 1 3 5 38 10 15 13 27 . 20 9 13 3 7 19 10 26 . 10 17 19 22 15 10 1 25 Fire 1313 | 5 67 40 . . 33 69 74 20 53 106 . 33 35 101 12 36 115 95 126 3 63 13 38 66 8 5 3 94 Melee 104 | . . . . . . . 1 . . . . . . . . . . . 4 . . . 41 58 . . . . Ram 31 | . 1 . . . . . . . . . . 1 . . . . 1 . . . . . 5 16 . . . 7 Kick 21 | . 1 . . . . . . . 3 . . . . 2 . . 3 . . . . 1 . . 2 . . 9 Crush 32 | . 5 3 . . . 3 6 2 . 2 . . . . . . . . . . . 2 . . . . . 9 Escape Stasis 80 | . . . . . . . 4 . . 16 . 4 . 5 . . . . 13 . 18 . . 1 19 . . . Rewire 108 | . . . . . . . . . . . . . . 107 . . . . 1 . . . . . . . . . Trap . | . . . . . . . . . . . . . . . . . . . . . . . . . . . . . Miscellaneous 9 | . . . . 1 . . . . . . . . . . 8 . . . . . . . . . . . . . Route ------- -11/Scrapyard -10/Materials (discovered 2 exits: *Mat x2) -9/Materials -9/Mines -9/Exiles -8/Mines -8/Materials (discovered 3 exits: *Fac / *Sto x2) -8/Storage (discovered 2 exits: *Fac / *Rec) -8/Recycling -6/Factory (discovered 2 exits: Fac / Gar) -6/Garrison (discovered 4 exits: *Fac x4) -6/Factory -6/Garrison -5/Factory (discovered 3 exits: Fac / [*Upp] / *Ext) -5/Extension (discovered 2 exits: *Fac / *Cet) -5/Cetus (discovered 2 exits: *Fac / [*Arc]) -5/Archives (discovered 3 exits: *Fac / *Hub x2) -5/Hub_04(d) (discovered 4 exits: *Fac x4) -4/Factory (discovered 2 exits: *Res / Gar) -4/Garrison (discovered 3 exits: *Fac x3) -4/Factory -4/Garrison -3/Research -3/Quarantine (discovered 2 exits: [*Res] / *Sec) -3/Section 7 -2/Research -2/Testing -1/Access -1/Command History --------- Turn | Location | Event 8 | -11/Scrapyard | Discovered new exit (range 15) 86 | -11/Scrapyard | Entered Materials 310 | -10/Materials | Build established: Mutant 874 | -10/Materials | Discovered new exit (range 8) 895 | -10/Materials | Core integrity fell below 50% 1108 | -10/Materials | Discovered new exit (range 16) 1548 | -10/Materials | Entered another Materials area 1548 | -9/Materials | Evolved 2 slots: Propulsion x1, Utility x1 1997 | -9/Materials | Identified exit to Mines 1997 | -9/Materials | Hacking Suite fried by hacking feedback 2102 | -9/Materials | Destroyed 9 combat bots 2171 | -9/Materials | Entered Mines 2172 | -9/Mines | Assembled infested the area 2178 | -9/Mines | Received a Rocket Launcher from a helpful Derelict 2208 | -9/Mines | Learned location of Storage (-8) 2236 | -9/Mines | Discovered new exit (range 5) 2241 | -9/Mines | Identified exit to Exiles 2242 | -9/Mines | Entered Exiles 2285 | -9/Exiles | Met 8R-AWN 2311 | -9/Exiles | Met EX-HEX 2380 | -9/Exiles | Met EX-DEC 2394 | -9/Exiles | Learned location of Zion (-7) 2421 | -9/Exiles | Met EX-BIN 2781 | -9/Exiles | Aligned with FarCom system 2783 | -9/Exiles | Given EX-Vault access code 2822 | -9/Exiles | Opened EX-Vault 2834 | -9/Exiles | Found Firepult 2845 | -9/Exiles | Found AWS/Autocannon 2892 | -9/Exiles | Warned to stay clear of 0b10 Research branches 2997 | -9/Exiles | Discovered new exit (range 14) 3019 | -9/Exiles | Identified exit to Mines 3021 | -9/Exiles | Stole two prototypes: Firepult, AWS/Autocannon 3021 | -9/Exiles | Entered Mines 3274 | -8/Mines | Discovered new exit (range 9) 3304 | -8/Mines | Identified exit to Materials 3306 | -8/Mines | Entered Materials 3306 | -8/Materials | Evolved 2 slots: Utility x1, Weapon x1 3725 | -8/Materials | Discovered new exit (range 11) 3789 | -8/Materials | Lost 3 parts (1n1u1w) 4148 | -8/Materials | Identified exit to Factory 4175 | -8/Materials | Build established: Scavenger-Skirmisher 4772 | -8/Materials | Identified exit to Storage 4797 | -8/Materials | Build established: Skirmisher 5305 | -8/Materials | Entered Storage 5629 | -8/Storage | Build established: Hacker-Skirmisher 5697 | -8/Storage | Garrison activated, responded to threat 5919 | -8/Storage | Core integrity fell below 50% 5948 | -8/Storage | Destroyed 11 combat bots 6480 | -8/Storage | Discovered exit to Factory (range 3) 6503 | -8/Storage | Identified exit to Recycling 6505 | -8/Storage | First assault squad dispatched 6710 | -8/Storage | Used back door to open Recycling access 6717 | -8/Storage | Entered Recycling 7265 | -8/Recycling | Discovered new exit (range 16) 7826 | -8/Recycling | Learned Storage stockpile data 7901 | -8/Recycling | Learned Factory security intel 7965 | -8/Recycling | Learned 4 Lower Caves zone layouts 8020 | -8/Recycling | Learned Factory emergency access door positions 8063 | -8/Recycling | Identified exit to Factory 8097 | -8/Recycling | Learned location of 2 exits from Lower Caves 8119 | -8/Recycling | Learned 2 Storage zone layouts 8149 | -8/Recycling | Learned Factory trap positions 8169 | -8/Recycling | Build established: Hacker-Mutant 8191 | -8/Recycling | Learned Factory trap positions 8244 | -8/Recycling | Learned 4 Factory zone layouts 8249 | -8/Recycling | Scanned before Scraplab entrance 8286 | -8/Recycling | Entered Scraplab 8294 | -8/Recycling | Angered Scraplab inhabitants 8294 | -8/Recycling | Found Prototype Device 8294 | -8/Recycling | Identified Scrap Engine 8586 | -8/Recycling | Build established: Mutant 9058 | -8/Recycling | Build established: Construct 10024 | -8/Recycling | Entered Factory 10024 | -6/Factory | Evolved 4 slots: Power x1, Propulsion x1, Utility x2 10025 | -6/Factory | Identified exit to Factory 10026 | -6/Factory | Loaded intel: 129 trap records 10026 | -6/Factory | FarCom data flow suspended 11543 | -6/Factory | Garrison activated, responded to threat 11696 | -6/Factory | Spotted B-75 Beast 11775 | -6/Factory | Destroyed B-75 Beast 11878 | -6/Factory | Identified exit to Garrison 11878 | -6/Factory | Entered Garrison 12204 | -6/Garrison | Triggered checkpoint 12215 | -6/Garrison | Triggered checkpoint 12282 | -6/Garrison | Lost 4 parts (2p1n1w) 12354 | -6/Garrison | Triggered checkpoint 12394 | -6/Garrison | Triggered checkpoint 12536 | -6/Garrison | Triggered checkpoint 12542 | -6/Garrison | Core integrity fell below 50% 12599 | -6/Garrison | Lost 5 parts (1p2n2w) 12916 | -6/Garrison | Triggered checkpoint 12918 | -6/Garrison | Garrison Relay disabled 13003 | -6/Garrison | Discovered new exit (range 14) 13004 | -6/Garrison | Triggered checkpoint 13068 | -6/Garrison | Discovered new exit (range 5) 14014 | -6/Garrison | Build established: Hauler-Construct 14018 | -6/Garrison | Discovered new exit (range 11) 14084 | -6/Garrison | Triggered checkpoint 14177 | -6/Garrison | Garrison Relay disabled 14616 | -6/Garrison | Discovered new exit (range 12) 14638 | -6/Garrison | Installed Relay Interface Framework 14706 | -6/Garrison | Triggered checkpoint 14769 | -6/Garrison | Expanded RIF knowledge: Threat Obfuscation 14843 | -6/Garrison | Entered Factory 14844 | -6/Factory | Loaded intel: 130 trap records 14870 | -6/Factory | Identified exit to Garrison 14870 | -6/Factory | Entered Garrison 15038 | -6/Garrison | Triggered checkpoint 15158 | -6/Garrison | Triggered checkpoint 15173 | -6/Garrison | Core integrity fell below 20% 15292 | -6/Garrison | Garrison Relay disabled 15518 | -6/Garrison | Build established: Bothacker-Construct 15599 | -6/Garrison | Discovered exit to Factory (range 10) 16069 | -6/Garrison | Entered Factory 16069 | -5/Factory | Evolved 2 slots: Propulsion x2 16086 | -5/Factory | Discovered new exit (range 88) 16626 | -5/Factory | Discovered new exit (range 16) 16754 | -5/Factory | Discovered new exit (range 16) 16807 | -5/Factory | Entered Extension 16996 | -5/Extension | Build established: Hauler-Construct 17400 | -5/Extension | Rescued a captive Derelict 17468 | -5/Extension | Build established: Commander-Construct 17717 | -5/Extension | Spotted B-75 Beast 17773 | -5/Extension | Lost 10 allies 17990 | -5/Extension | Build established: Hauler-Construct 18967 | -5/Extension | Spotted B-75 Beast 19005 | -5/Extension | Destroyed B-75 Beast 19182 | -5/Extension | Disrupted transfer network 19289 | -5/Extension | Rescued a captive Derelict 19304 | -5/Extension | Rescued a captive Derelict 19305 | -5/Extension | Rescued a captive Derelict 19470 | -5/Extension | Rescued a captive Derelict 19507 | -5/Extension | Rescued a captive Derelict 19517 | -5/Extension | Rescued a captive Derelict 19647 | -5/Extension | Rescued A7 19666 | -5/Extension | Lost 3 allies 20257 | -5/Extension | Discovered new exit (range 10) 20261 | -5/Extension | Discovered new exit (range 6) 20529 | -5/Extension | Entered Cetus 20529 | -5/Cetus | Accompanied by 3 allies (A7) 20534 | -5/Cetus | Acquired a Cetus Manufacturing Module code from A7 20571 | -5/Cetus | Spotted Cetus Guard 20571 | -5/Cetus | Spotted Cetus Guard 20573 | -5/Cetus | Spotted Cetus Guard 20573 | -5/Cetus | Spotted Cetus Guard 20584 | -5/Cetus | Allies destroyed Cetus Guard 20595 | -5/Cetus | Allies destroyed Cetus Guard 20595 | -5/Cetus | Destroyed Cetus Guard 20601 | -5/Cetus | Allies destroyed Cetus Guard 20833 | -5/Cetus | Escorted A7 to Cetus Mainframe 20865 | -5/Cetus | Started Cetus Manufacturing Module 20890 | -5/Cetus | Manufactured an Enhanced Grunt 20908 | -5/Cetus | Discovered new exit (range 16) 20915 | -5/Cetus | Manufactured an Enhanced Grunt 20940 | -5/Cetus | Manufactured an Enhanced Grunt 20965 | -5/Cetus | Manufactured an Enhanced Grunt 20966 | -5/Cetus | Spotted Cetus Guard 20966 | -5/Cetus | Spotted Cetus Guard 20968 | -5/Cetus | Spotted Cetus Guard 20969 | -5/Cetus | Spotted Cetus Guard 20975 | -5/Cetus | Allies destroyed Cetus Guard 20975 | -5/Cetus | Destroyed Cetus Guard 20984 | -5/Cetus | Destroyed Cetus Guard 20987 | -5/Cetus | Allies destroyed Cetus Guard 20990 | -5/Cetus | Manufactured an Enhanced Grunt 21014 | -5/Cetus | Discovered new exit (range 16) 21030 | -5/Cetus | Met Revision 17 21242 | -5/Cetus | Entered Archives 21242 | -5/Archives | Accompanied by 5 allies (A7) 21247 | -5/Archives | Received a hacking code to weaken MAIN.C 21407 | -5/Archives | Discovered new exit (range 16) 21540 | -5/Archives | Discovered new exit (range 16) 21618 | -5/Archives | Discovered new exit (range 15) 21806 | -5/Archives | Entered Hub_04(d) 21806 | -5/Hub_04(d) | Accompanied by 6 allies 22085 | -5/Hub_04(d) | Discovered new exit (range 15) 22195 | -5/Hub_04(d) | Discovered new exit (range 16) 22259 | -5/Hub_04(d) | Discovered new exit (range 7) 22563 | -5/Hub_04(d) | Network Hub disabled 22563 | -5/Hub_04(d) | Network Hub disabled 22567 | -5/Hub_04(d) | Spotted Lightning 22567 | -5/Hub_04(d) | Spotted Lightning 22616 | -5/Hub_04(d) | Spotted Lightning 22622 | -5/Hub_04(d) | System corruption reached 10% 22655 | -5/Hub_04(d) | Destroyed Lightning 22681 | -5/Hub_04(d) | Destroyed Lightning 22687 | -5/Hub_04(d) | Destroyed Lightning 22696 | -5/Hub_04(d) | Found Prototype Energy Cannon 22718 | -5/Hub_04(d) | Found Prototype Device 22718 | -5/Hub_04(d) | Identified Exp. EM Disruption Field 22726 | -5/Hub_04(d) | Found Prototype Device 22727 | -5/Hub_04(d) | Identified Exp. Phase Shifter 22731 | -5/Hub_04(d) | Found Prototype Processor 22741 | -5/Hub_04(d) | Found Exp. EM Disruption Field 22809 | -5/Hub_04(d) | Discovered new exit (range 11) 23695 | -5/Hub_04(d) | Spotted Lightning 23697 | -5/Hub_04(d) | Spotted Lightning 23706 | -5/Hub_04(d) | Spotted Lightning 23758 | -5/Hub_04(d) | Destroyed Lightning 23781 | -5/Hub_04(d) | System corruption reached 30% 23789 | -5/Hub_04(d) | Destroyed Lightning 23802 | -5/Hub_04(d) | Destroyed Lightning 23851 | -5/Hub_04(d) | Found Exp. EM Disruption Field 23856 | -5/Hub_04(d) | Found Exp. EM Disruption Field 24191 | -5/Hub_04(d) | Entered Factory 24191 | -4/Factory | Evolved 2 slots: Utility x2 25456 | -4/Factory | Discovered new exit (range 14) 25484 | -4/Factory | Identified Exp. Targeting Computer 25532 | -4/Factory | Destroyed 8 combat bots 25941 | -4/Factory | First assault squad dispatched 25959 | -4/Factory | Identified exit to Garrison 25966 | -4/Factory | Entered Garrison 26250 | -4/Garrison | Triggered checkpoint 26341 | -4/Garrison | Triggered checkpoint 26369 | -4/Garrison | Spotted B-86 Titan 26433 | -4/Garrison | Destroyed B-86 Titan 26456 | -4/Garrison | Triggered checkpoint 26554 | -4/Garrison | Triggered checkpoint 26640 | -4/Garrison | Triggered checkpoint 26667 | -4/Garrison | Garrison Relay disabled 26754 | -4/Garrison | Discovered new exit (range 12) 26808 | -4/Garrison | Triggered checkpoint 26851 | -4/Garrison | Discovered new exit (range 14) 26917 | -4/Garrison | Core integrity fell below 50% 27502 | -4/Garrison | Triggered checkpoint 27776 | -4/Garrison | Expanded RIF knowledge: Zone Cloak 27909 | -4/Garrison | Garrison Relay disabled 28224 | -4/Garrison | Build established: Bothacker-Construct 28420 | -4/Garrison | Triggered checkpoint 28651 | -4/Garrison | Garrison Relay disabled 28856 | -4/Garrison | Discovered new exit (range 14) 28908 | -4/Garrison | Entered Factory 28908 | -4/Factory | Accompanied by 2 allies 28959 | -4/Factory | Identified exit to Garrison 28967 | -4/Factory | Entered Garrison 28967 | -4/Garrison | Accompanied by 3 allies 29107 | -4/Garrison | Spotted B-86 Titan 29110 | -4/Garrison | Assimilated Titan 7a with formatsys_high 29116 | -4/Garrison | Lost 5 allies 29313 | -4/Garrison | Triggered checkpoint 29313 | -4/Garrison | Triggered checkpoint 29655 | -4/Garrison | Found Gamma Bomb Array 29684 | -4/Garrison | Discovered new exit (range 12) 29753 | -4/Garrison | Core integrity fell below 20% 29929 | -4/Garrison | System corruption reached 10% 30004 | -4/Garrison | Entered Research 30004 | -3/Research | Accompanied by 1 ally 30004 | -3/Research | Evolved 2 slots: Utility x1, Weapon x1 30204 | -3/Research | Revision forces began assault on 0b10 30206 | -3/Research | Met up with Revision 17++ 30410 | -3/Research | Found Prototype Device 30410 | -3/Research | Identified Exp. ECM Suite 30425 | -3/Research | Found Exp. ECM Suite 30483 | -3/Research | Found Prototype Processor 30483 | -3/Research | Identified Spectral Analyzer 30617 | -3/Research | Discovered new exit (range 17) 30655 | -3/Research | Fabricated H-66 Slayer (x2) 30704 | -3/Research | Research terminal network offline 30713 | -3/Research | Fabricated H-66 Slayer? 30764 | -3/Research | Fabricated M-28 Smith (x1) 30799 | -3/Research | Entered Quarantine 30799 | -3/Quarantine | Accompanied by 7 allies 30927 | -3/Quarantine | Build established: Commander-Construct 31033 | -3/Quarantine | Found Alien Artifact 31068 | -3/Quarantine | Found Alien Slashing Weapon 31091 | -3/Quarantine | Identified EMDS 31091 | -3/Quarantine | Identified Sigix Broadsword 31091 | -3/Quarantine | Identified Subatomic Replicator 31417 | -3/Quarantine | Found Prototype Device 31417 | -3/Quarantine | Identified Adv. Kinecellerator 31485 | -3/Quarantine | Found Alien Artifact 31551 | -3/Quarantine | Identified Phase Redirector 31889 | -3/Quarantine | Lost 3 allies 31936 | -3/Quarantine | Found Core Stripper 31954 | -3/Quarantine | Found Hpw. Transdimensional Reconstructor 31968 | -3/Quarantine | Found Dimensional Node Initializer 31969 | -3/Quarantine | Found Dimensional Node Initializer 31973 | -3/Quarantine | Found Hpw. Transdimensional Reconstructor 31975 | -3/Quarantine | Found Hpw. Transdimensional Reconstructor 32060 | -3/Quarantine | Discovered new exit (range 11) 32073 | -3/Quarantine | Garrison activated, responded to threat 32130 | -3/Quarantine | Spotted Fortress 32153 | -3/Quarantine | Lost 5 allies 32180 | -3/Quarantine | Discovered new exit (range 6) 32192 | -3/Quarantine | Entered Section 7 32261 | -3/Section 7 | Spotted S7 Guard 32267 | -3/Section 7 | Found Alien Artifact 32286 | -3/Section 7 | Scanned by Researcher 32310 | -3/Section 7 | Used Subatomic Replicator to replicate Adv. Remote Datajack 32327 | -3/Section 7 | Found Alien Artifact 32343 | -3/Section 7 | Destroyed S7 Guard 32347 | -3/Section 7 | Found Prototype Protection 32347 | -3/Section 7 | Identified Hvy. Regenerative Plating 32417 | -3/Section 7 | Warped through subspace 32425 | -3/Section 7 | Found Alien Artifact 32426 | -3/Section 7 | Identified Integrated Mediator 32426 | -3/Section 7 | Installed Integrated Mediator, increased core attachment efficiency 32467 | -3/Section 7 | Found Alien Artifact 32468 | -3/Section 7 | Identified Core Reset Matrix 32468 | -3/Section 7 | Identified Integrated Reactor 32468 | -3/Section 7 | Identified Core Regenerator 32468 | -3/Section 7 | Used Core Reset Matrix 32469 | -3/Section 7 | Installed Integrated Reactor, increased core energy generation (+10) 32472 | -3/Section 7 | Sensed 13 artifacts in vicinity 32587 | -3/Section 7 | Found Prototype Processor 32587 | -3/Section 7 | Identified Exp. Terrain Scan Processor 32641 | -3/Section 7 | Found Microwarp Drive 32809 | -3/Section 7 | Build established: Alien-Mutant 32900 | -3/Section 7 | Destroyed 7 combat bots 33043 | -3/Section 7 | Intercept squad dispatched 33047 | -3/Section 7 | Spotted Tracker 33048 | -3/Section 7 | Warped through subspace 33057 | -3/Section 7 | Spotted Combat Programmer 33087 | -3/Section 7 | Destroyed Combat Programmer 33087 | -3/Section 7 | Discovered new exit (range 12) 33143 | -3/Section 7 | Build established: Scavenger-Construct 33155 | -3/Section 7 | Found Integrated Dissipator 33155 | -3/Section 7 | Installed Integrated Dissipator, increased core heat dissipation (+20) 33192 | -3/Section 7 | First assault squad dispatched 33192 | -3/Section 7 | Initialized slip node 33195 | -3/Section 7 | Core integrity fell below 50% 33204 | -3/Section 7 | Entered Research 33204 | -2/Research | Evolved 2 slots: Power x1, Utility x1 33232 | -2/Research | Lost 3 parts (1n2w) 33490 | -2/Research | Warped through subspace 33527 | -2/Research | Initialized slip node 33649 | -2/Research | Discovered new exit (range 11) 33656 | -2/Research | Entered Testing 33733 | -2/Testing | Core integrity fell below 50% 33740 | -2/Testing | Spotted Alpha 7 33741 | -2/Testing | Spotted Striker 33741 | -2/Testing | Spotted Striker 33771 | -2/Testing | Found Prototype Protection 33771 | -2/Testing | Identified Med. Regenerative Plating 33775 | -2/Testing | Found Prototype Protection 33775 | -2/Testing | Identified SHELL Armor 33788 | -2/Testing | Core integrity fell below 20% 33791 | -2/Testing | Discovered new exit (range 3) 33794 | -2/Testing | Entered Access 33794 | -1/Access | Evolved 2 slots: Utility x2 33983 | -1/Access | Build established: Alien-Tank 34055 | -1/Access | Discovered new exit (range 8) 34089 | -1/Access | Entered Command 34262 | -1/Command | Found Prototype Launcher 34750 | -1/Command | Build established: Scavenger-Tank 34948 | -1/Command | System corruption reached 10% 34953 | -1/Command | Identified Com. Tesla Bomb Launcher 35074 | -1/Command | Spotted B-99 Colossus 35245 | -1/Command | Phase Generator disabled 35342 | -1/Command | Spotted Alpha 7 35347 | -1/Command | Spotted Alpha 7 35443 | -1/Command | System corruption reached 30% 35537 | -1/Command | Spotted Striker 35537 | -1/Command | Spotted Executioner 35546 | -1/Command | Spotted Striker 35558 | -1/Command | Core integrity fell below 50% 35569 | -1/Command | Found Unknown Launcher 35569 | -1/Command | Identified Fusion Bomb Launcher 35588 | -1/Command | Spotted Executioner 35594 | -1/Command | Emitted hypermatrix ping 35599 | -1/Command | Assembled emerged from beneath the floor 35608 | -1/Command | Used Core Regenerator, restored core integrity (+400) 35615 | -1/Command | Spotted M Guard 35615 | -1/Command | Spotted M Guard 35615 | -1/Command | Spotted Combat Programmer 35615 | -1/Command | Spotted Combat Programmer 35619 | -1/Command | Met MAIN.C 35622 | -1/Command | 0b10 Conduit disabled 35676 | -1/Command | Core integrity fell below 20% 35688 | -1/Command | Destroyed by Combat Programmer with EMDS Last Messages --------------- 35683_ Hdn. Centrium Leg destroyed. 35683_ Exp. EM Disruption Field destroyed. 35684_ Myomer-Biometal Exoskeleton destroyed. 35684_ Myomer-Biometal Exoskeleton core remains intact and functional. 35684_ Knocked back. 35684_ EMDS Slug penetrates 0b10 Conduit. 35685_ Combat Programmer resets M Guard, system corruption cleaned. 35685_ Arm. Scrap Engine destroyed. 35685_ Scrap Engine core remains intact and functional. 35686_ Slammed into MAIN.C. 35686_ Combat Programmer resets M Guard, system corruption cleaned. 35686_ Penetrated by EMDS Slug. 35687_ Slammed into MAIN.C. 35687_ Penetrated by EMDS Slug. 35688_ Slammed into MAIN.C. 35688_ Penetrated by EMDS Slug. Map ----- +----------------------------------------------------+ | ?????????????????????????????????????????????????? | | ?????????????????????????????????????????????????? | | ?????????????????????????????????????????????????? | | ?????????????????????????????????????????????????? | | ?????????????????????????????????????????????????? | | ?????????????????????????????????????????????????? | | ?????????????????????????????????????????????????? | | ?????????????????????????????????????????????????? | | ?????????????????????????????????????????????????? | | ?????????????????????????????????????????????????? | | ?????????????????????????????????????????????????? | | ?????????????????????????????????????????????????? | | ???????????????????????#################?????????? | | ???????????????????"""""" """" #?????????? | | ???????????????????" "" #?????????? | | ?????????????????#""""" "" ####??????? | | ?????????????????#""""""""""" + | | ?????????????????#" " """ + ???? | | ?????????????????#"" """""" + ???? | | ?????????????????# """"" #??????#### | | ?????????????????# " " #?????????? | | ?????????????????# " #?????????? | | ?????????????????# ""#?????????? | | ?????????????????# % MMM """"""#?????????? | | ?????????????????# MMM !!"""""""??????????? | | ?????????????????# @MMM """""???????????? | | ?????????????????# % p " ??????????? | | ?????????????????# pY " #?????????? | | ?????????????????" Y """ " #?????????? | | ?????????????????" """" ??????????? | | ?????????????????" " #?????????? | | ?????????????????# " """ " ????????????? | | ?????????????????# """ " """"""????????????? | | ?????????????????# """ " " " ????????????? | | ?????????????????##################??????????????? | | ?????????????????????????????????????????????????? | | ?????????????????????????????????????????????????? | | ?????????????????????????????????????????????????? | | ?????????????????????????????????????????????????? | | ?????????????????????????????????????????????????? | | ?????????????????????????????????????????????????? | | ?????????????????????????????????????????????????? | | ?????????????????????????????????????????????????? | | ?????????????????????????????????????????????????? | | ?????????????????????????????????????????????????? | | ?????????????????????????????????????????????????? | | ?????????????????????????????????????????????????? | | ?????????????????????????????????????????????????? | | ?????????????????????????????????????????????????? | | ?????????????????????????????????????????????????? | +----------------------------------------------------+ Best States ------------- Heat Dissipation 148 Coolant Potential 80 Energy Generation 70 Energy Capacity 1074 Matter Stores 300 Matter Capacity 300 Sight Range 24 Terrain Scan Range 16 Terrain Scan Density 10 ECM Strength 3 Jamming Range 14 Cloak Strength 4 Power Amplification 30 Additional Mass Support 12 Corruption Block 13 Armor Coverage 900 Resistance: TH 30 Resistance: EM 75 Power Shielding 33 Weapon Shielding 66 Weapon Cycling 25 Melee Speed Boost 30 Phase Shifting 20 Evasion (%) 70 Targeting Accuracy 12 Target Analysis 8 Recoil Reduction 6 Energy Filtering 30 Salvage Targeting 8 Offensive Hacking 22 Defensive Hacking 14 Relay Coupler Types 3 Relay Coupler Value 63 Authchip Count 3 Trap Extractor Capacity 8 Item Schematics ----------------- Diametric Drive | -3/Section 7 | Archive Enh. Coil Gun | -3/Section 7 | Archive Exp. Signal Interpreter | -3/Section 7 | Archive Adv. Remote Shield | -3/Section 7 | Archive Adv. Kinecellerator | -3/Section 7 | Archive Imp. Matter Compressor | -3/Section 7 | Archive Adv. Plasma Rifle | -3/Section 7 | Archive Prc. Energy Filter | -3/Section 7 | Archive Exp. Energy Well | -3/Section 7 | Archive Adv. Matter Compressor | -3/Section 7 | Archive Com. Mass Driver | -3/Section 7 | Archive Hvy. Dispersion Rifle | -2/Testing | Archive Stealth Drone Bay | -2/Testing | Archive Exp. Shield Generator | -2/Testing | Archive Robot Schematics ------------------ S-43 Plague | -3/Section 7 | Archive B-74 Champion | -3/Section 7 | Archive A-02 Transporter | -3/Section 7 | Archive Y-72 Warden | -3/Section 7 | Archive R-06 Scavenger | -3/Section 7 | Archive Fabricated ------------ H-66 Slayer | x2 | -3/Research | Authchip H-66 Slayer | x2 | -3/Research | Authchip M-28 Smith | x1 | -3/Research Alien Tech Used ----------------- Sigix Broadsword Subatomic Replicator High-powered Transdimensional Reconstructor Integrated Mediator Core Reset Matrix Integrated Reactor Core Stripper Integrated Dissipator Dimensional Node Initializer Microwarp Drive Phase Redirector Core Regenerator Achievements -------------- None Challenges ------------ None Game ------ Seed AntimissileBattleRigger Manual? 0 Play Time 05:22:51 Cumulative 722.0 hours Start 2024.09.13 @ 20:47:09 End 2024.09.14 @ 18:18:03 Sessions 3 Manual Loads 0 Difficulty Rogue Special Mode None Game No. 155 Rogue 17 Adventurer 138 Explorer 0 Win Type - Total 11 Types 7/0/1/2/0/0/0/0/1 Lore% 78 Gallery% 84 Achievement% 73 Wizard Run 0 Options --------- Layout 2 ASCII 0 Keyboard 0 Movement Mouse Keybinds 0 Fullscreen 1 Font 24/Smallcaps Map View 50x49 Zoom Use 0% Tactical HUD 1 Map Filters NONE Filters NONE Steam 1 RUN: 01099fc5-3db2-4707-8756-e970e0cfc43a